Cogmind - Beta 16 @@@ ROGUE MODE // 2025.12.25 @ 09:27:04 // Winter2019/RPGLIKE Player: Gallgagger Result: Self-destructed Performance ------------- Evolutions (2) 1000 Regions Visited (7) 1400 Robots Destroyed (153) 765 Value Destroyed (3474) 3474 Prototype IDs (31) 620 Alien Tech Used (0) 0 Bonus (796) 796 TOTAL SCORE: 8055 Bonus ------- High Alert Combat Kills 496 Aligned with FarCom 300 Cogmind --------- Core Integrity 600/600 Matter 268/300 Energy 220/220 System Corruption 0% Temperature Cool (0) Movement Hovering (61) Location -8/Materials Parts ------- > --- POWER (2) -------- Makeshift Power Source Light Angular Momentum Engine > --- PROPULSION (4) --- Improved Hover Unit Combat Airjet Makeshift Hover Unit Combat Antigrav System > --- UTILITY (6) ------ Seismic Detector Experimental Core Analyzer Improved Armor Integrity Analyzer Advanced Weapon Cycler Reactive Plating Reflective Plating > --- WEAPON (3) ------- Autogun Autogun 8R-AWN's Boregun > --- INVENTORY (4) ---- Experimental Sensor Array Trap Reconfigurator PSU Rigger Deploy-a-Sentry Peak State ------------ > --- POWER ------------ Makeshift Power Source Light Angular Momentum Engine > --- PROPULSION ------- Improved Hover Unit Combat Airjet Makeshift Hover Unit Combat Antigrav System > --- UTILITY ---------- Seismic Detector Experimental Core Analyzer Improved Armor Integrity Analyzer Advanced Weapon Cycler Improved Power Shielding Reactive Plating > --- WEAPON ----------- Autogun Autogun 8R-AWN's Boregun > --- INVENTORY -------- Experimental Sensor Array Trap Reconfigurator PSU Rigger Deploy-a-Sentry [Rating: 78] Favorites ----------- Power Light Nuclear Core Engine Ion Engine Power Core Light Nuclear Core Propulsion Hover Unit Wheel Wheel Hover Unit Hover Unit Utility Seismic Detector Device Seismic Detector Storage Small Battery Processor Experimental Core Analyzer Protection Light Armor Plating Weapon Heavy Assault Rifle Energy Gun Medium Laser Energy Cannon Advanced Beam Cannon Ballistic Gun Heavy Assault Rifle Special Weapon Mining Laser Slashing Weapon Makeshift Sword Build | -11 -10 -10 -9 -9 -9 -8 -8 ------- Run | Yrd Mat Min Mat Min Exi Min Mat Slots Evolved 11 | 3 3 1 3 1 . . . Power 1 | . . . 1 . . . . Propulsion 3 | 1 . 1 1 . . . . Utility 5 | 1 2 . 1 1 . . . Weapon 2 | 1 1 . . . . . . Parts Attached 51 | 7 6 4 19 . 12 1 2 Power 7 | 1 . 1 3 . 2 . . Engine 4 | 1 . . 1 . 2 . . Core 3 | . . 1 2 . . . . Reactor . | . . . . . . . . Propulsion 9 | 2 2 2 1 . 2 . . Treads . | . . . . . . . . Leg . | . . . . . . . . Wheel 2 | 2 . . . . . . . Hover 7 | . 2 2 1 . 2 . . Flight . | . . . . . . . . Utility 18 | 2 1 . 6 . 7 . 2 Device 6 | 2 . . . . 4 . . Storage 1 | . . . . . 1 . . Processor 2 | . . . . . 2 . . Hackware . | . . . . . . . . Protection 9 | . 1 . 6 . . . 2 Artifact . | . . . . . . . . Weapon 17 | 2 3 1 9 . 1 1 . Energy Gun 4 | 1 . . 3 . . . . Energy Cannon 1 | . 1 . . . . . . Ballistic Gun 10 | 1 1 . 6 . 1 1 . Ballistic Cannon . | . . . . . . . . Launcher . | . . . . . . . . Special Weapon 1 | . 1 . . . . . . Impact Weapon . | . . . . . . . . Slashing Weapon 1 | . . 1 . . . . . Piercing Weapon . | . . . . . . . . Special Melee Weapon . | . . . . . . . . Unidentified Prototypes 8 | . 1 . 3 . 4 . . Parts Lost 2 | . . . 1 . . . 1 Power . | . . . . . . . . Propulsion . | . . . . . . . . Utility 2 | . . . 1 . . . 1 Weapon . | . . . . . . . . Highest Loss Streak 1 | . . . 1 . . . 1 To Critical Strikes . | . . . . . . . . Average Backups 1 | . 1 . 1 1 1 3 3 Power . | . . . . . . . . Propulsion . | . . . . . . . . Utility . | . . . . . . 3 3 Weapon . | . . . . 1 . . . Tool/Special . | . . . . . . . . Unused Backups 8 | . . . 1 . 5 . 2 Power 4 | . . . 1 . 3 . . Propulsion . | . . . . . . . . Utility 4 | . . . . . 2 . 2 Weapon . | . . . . . . . . Tool/Special . | . . . . . . . . Average Slot Usage (%) 95 | . 97 90 95 97 92 98 97 Engine 5 | . 13 5 . . 1 13 13 Core 7 | . . 3 11 13 11 . . Wheel 1 | . 5 . . . . . . Hover 24 | . 20 23 26 27 26 26 26 Device 17 | . 26 19 14 13 14 13 13 Processor 1 | . . . . . 2 13 13 Protection 12 | . 3 9 17 20 17 13 10 Energy Gun 6 | . 13 9 9 . . . . Ballistic Gun 14 | . 13 9 11 20 17 18 20 Peak Build Rating 78 | 9 11 21 32 32 75 77 78 Average Rating 29 | 5 9 16 28 31 40 76 76 On Entrance 32 | . 9 11 21 31 32 75 77 Avg Prop Armor Cover (%) 6 | . 6 . . . . . . Naked Turns . | . . . . . . . . Heaviest Build 47 | 10 15 16 41 41 47 44 44 Greatest Support 57 | 31 31 29 41 41 57 57 57 Greatest Overweight (x) 1 | . . . 1 . 1 . . Average Overweight (x) . | . . . . . . . . Largest Inventory Capacity 4 | 2 2 2 2 3 4 4 4 Average Capacity 2 | 2 2 2 2 2 3 4 4 Most Carried 4 | . 2 2 2 3 4 4 4 Average Carried 2 | . 1 2 1 2 2 4 4 Final Capacity 4 | 2 2 2 2 3 4 4 4 Final Carried 4 | . 2 2 2 3 4 4 4 Class Distribution -------------------- 45% | Scavenger-Tank 27% | Mutant 12% | Scavenger-Mutant 9% | Scavenger-Gunner 4% | Gunner Dominant Class ---------------- Mutant | -10/Materials Mutant | -10/Mines Scavenger-Tank | -9/Materials Scavenger-Tank | -9/Mines Scavenger-Tank | -9/Exiles Scavenger-Gunner | -8/Mines Scavenger-Gunner | -8/Materials Resources | -11 -10 -10 -9 -9 -9 -8 -8 ----------- Run | Yrd Mat Min Mat Min Exi Min Mat Matter Collected 2549 | 279 296 100 697 270 718 56 133 Remotely . | . . . . . . . . Salvage Created 4942 | 149 718 153 2286 452 496 129 559 Parts 398 | 11 67 7 150 45 72 12 34 Haulers Intercepted 8 | . 2 . 4 . . . 2 Recyclers Shooed 3 | 1 . . . 2 . . . Parts Field Recycled . | . . . . . . . . Retrieved Matter . | . . . . . . . . Parts Self-Destructed . | . . . . . . . . Prevented . | . . . . . . . . Parts Restored . | . . . . . . . . Kills | -11 -10 -10 -9 -9 -9 -8 -8 ------- Run | Yrd Mat Min Mat Min Exi Min Mat Combat Hostiles Destroyed 113 | . 27 7 51 15 3 3 7 Guns 113 | . 27 7 51 15 3 3 7 Classes Destroyed 15 | 2 5 1 5 1 1 . . Worker 5 | . 1 . 2 1 . 1 . Builder 7 | . 1 . 3 1 . . 2 Tunneler 6 | 3 1 . . 1 . 1 . Hauler 8 | . 2 . 4 . . . 2 Recycler 6 | 1 . 1 1 2 . . 1 Operator 1 | . . . 1 . . . . Watcher 2 | . . . 2 . . . . Swarmer 34 | . 6 3 11 11 . 3 . Grunt 56 | . 21 . 28 3 . . 4 Brawler 3 | . . . 2 . . . 1 Duelist 2 | . . . . 1 . . 1 Protector 2 | . . . 2 . . . . Sentry 9 | . . . 8 . . . 1 Zionite 8 | . . . . . 8 . . Assembled 6 | . . 4 . . 2 . . Best Kill Streak 10 | 4 4 3 9 7 10 3 9 Combat Bots Only 7 | . 4 3 6 7 2 3 6 Max Kills in Single Turn 2 | 1 2 1 2 2 2 2 2 Gunslinging 1 | . 1 . 1 1 . . . Exploded . | . . . . . . . . Melee . | . . . . . . . . Uniques/NPCs Destroyed 4 | . . . . . 4 . . 8R-AWN (-9/Exiles) EX-HEX (-9/Exiles) EX-DEC (-9/Exiles) EX-BIN (-9/Exiles) Combat | -11 -10 -10 -9 -9 -9 -8 -8 -------- Run | Yrd Mat Min Mat Min Exi Min Mat Hostile Shots Fired 367 | . 78 23 149 22 71 7 17 Missed 120 | . 27 10 58 5 16 3 1 Hits 247 | . 51 13 91 17 55 4 16 Projectile 247 | . 51 13 91 17 55 4 16 Critical Strikes 27 | . . . 4 . 22 . 1 Part Disruptions 1 | . . . . . 1 . . Damage Taken 3007 | . 542 187 1067 124 813 22 252 Core 2032 | . 404 142 688 71 529 15 183 Absorbed by Shields . | . . . . . . . . Redirected to Core 1733 | . 335 94 627 65 466 10 136 Ignored by Resistances 265 | . . . 4 28 221 8 4 Core Remaining (%) 83 | 100 . 91 . . . 59 . Volleys Fired 364 | 9 86 20 110 27 81 6 25 Largest 3 | 2 2 2 3 3 3 1 1 Hottest 124 | 70 70 70 124 69 69 30 30 Shots Fired 789 | 18 171 33 308 81 147 6 25 Gun 789 | 18 171 33 308 81 147 6 25 Cannon . | . . . . . . . . Launcher . | . . . . . . . . Special . | . . . . . . . . Kinetic 541 | 9 86 20 167 81 147 6 25 Thermal 217 | 9 85 13 110 . . . . Explosive . | . . . . . . . . Electromagnetic 31 | . . . 31 . . . . Robot Hit Streak 34 | 5 18 3 31 34 12 6 8 Robot Miss Streak 4 | 2 3 3 3 3 4 1 3 Penetration Max 2 | . . . . . 2 1 2 Secondary Targets 12 | . 1 1 5 4 1 . . Max Gunslinging Chain 1 | . 1 1 1 1 1 . . Shots Hit Robots 548 | 10 124 16 225 47 104 5 17 Core Hits 247 | 5 56 12 98 23 34 5 14 Critical Kills 12 | . . . . . 3 3 6 Critical Parts Destroyed 19 | . 1 . . . 8 2 8 Critical Strikes 43 | 2 6 . 5 . 11 5 14 Burn 12 | 2 5 . 5 . . . . Destroy 31 | . 1 . . . 11 5 14 Melee Attacks . | . . . . . . . . Impact . | . . . . . . . . Slashing . | . . . . . . . . Piercing . | . . . . . . . . Sneak Attacks . | . . . . . . . . Combat Hostiles . | . . . . . . . . Follow-up Attacks . | . . . . . . . . Damage Inflicted 8678 | 105 1570 204 3639 739 1802 132 487 Guns 8678 | 105 1570 204 3639 739 1802 132 487 Cannons . | . . . . . . . . Explosions . | . . . . . . . . Melee . | . . . . . . . . Ramming . | . . . . . . . . Kinetic 5735 | 30 748 141 1656 739 1802 132 487 Thermal 2384 | 75 822 63 1424 . . . . Explosive . | . . . . . . . . Electromagnetic 559 | . . . 559 . . . . Impact . | . . . . . . . . Slashing . | . . . . . . . . Piercing . | . . . . . . . . Highest Corruption . | . . . . . . . . Average Corruption . | . . . . . . . . Corruption Purged . | . . . . . . . . Corruption Blocked . | . . . . . . . . Overload Shots . | . . . . . . . . Overflow Damage . | . . . . . . . . Projectiles . | . . . . . . . . Explosions . | . . . . . . . . Melee . | . . . . . . . . Knockbacks . | . . . . . . . . Impact . | . . . . . . . . Kinetic . | . . . . . . . . Secondary . | . . . . . . . . Self-Inflicted Damage 29 | . . . 29 . . . . Shots 1 | . . . 1 . . . . Rammed . | . . . . . . . . Targets Rammed . | . . . . . . . . Kicked . | . . . . . . . . Crushed . | . . . . . . . . Highest Temperature 225 | . 7 . 225 . . . 5 Average Temperature 27 | . 4 . 30 . . . 3 Received Heat Transfer 940 | . 252 18 459 18 40 . 153 Siege Activations . | . . . . . . . . Martial Activations . | . . . . . . . . Shielding Activations . | . . . . . . . . Robots Disrupted 1 | . . . 1 . . . . Combat Hostiles . | . . . . . . . . Robots Corrupted . | . . . . . . . . Combat Hostiles . | . . . . . . . . Parts Fried 1 | . . . 1 . . . . Impact Corruptions . | . . . . . . . . Robots Melted . | . . . . . . . . Combat Hostiles . | . . . . . . . . Parts Melted 14 | 1 5 . 8 . . . . Heat Transferred 7070 | 370 2701 185 3814 . . . . Parts Sabotaged . | . . . . . . . . Parts Stolen . | . . . . . . . . Parts Stripped . | . . . . . . . . Power Chain Reactions 2 | . . . 2 . . . . Alert | -11 -10 -10 -9 -9 -9 -8 -8 ------- Run | Yrd Mat Min Mat Min Exi Min Mat Maximum Alert Level 3 | . 2 1 3 2 . . . Low Security (%) 40 | 100 47 60 16 . . 100 100 Level 1 14 | . 24 39 7 1 . . . Level 2 32 | . 27 . 39 98 . . . Level 3 12 | . . . 36 . . . . Level 4 . | . . . . . . . . Level 5 . | . . . . . . . . High Security . | . . . . . . . . Max Security . | . . . . . . . . Sterilizations 1 | . . . 1 . . . . Peak Influence 974 | 10 555 265 974 651 . 71 158 Initial 376 | . . 205 27 376 . . . Average 339 | 1 234 171 544 577 . 16 85 Influence Increases 3193 | 20 968 75 1442 390 . 82 216 Destroy 0b10 Robot/C 2080 | . 540 60 980 300 . 60 140 Destroy 0b10 Robot/NC 185 | 20 25 5 75 25 . 10 25 Destroy Leader 480 | . 144 10 232 50 . 10 34 Successful Hack 38 | . 19 . 6 . . . 13 Select Force Hacks 270 | . 210 . 60 . . . . Disable Machine 15 | . . . 15 . . . . Destroy Structure 20 | . . . 14 . . 2 4 Partial Spotted 15 | . 15 . . . . . . Lose Combat Pursuer 90 | . 15 . 60 15 . . . Influence Decreases 3047 | 20 441 530 549 787 568 81 71 Entered New Map 1525 | . . 322 45 589 568 . 1 Time Decay 1492 | 20 441 198 494 198 . 81 60 Lost Part 20 | . . . 10 . . . 10 Lost Ally 10 | . . 10 . . . . . Squads Dispatched 21 | . 11 . 9 1 . . . Investigation 16 | . 10 . 6 . . . . Extermination . | . . . . . . . . Reinforcement 3 | . 1 . 1 1 . . . Assault 2 | . . . 2 . . . . Garrison . | . . . . . . . . Intercept . | . . . . . . . . Searches Triggered . | . . . . . . . . Construction Impeded 1 | . . . . 1 . . . Haulers Reinforced . | . . . . . . . . Active Scanning Responses . | . . . . . . . . Cargo Convoy Interrupts . | . . . . . . . . Stealth | -11 -10 -10 -9 -9 -9 -8 -8 --------- Run | Yrd Mat Min Mat Min Exi Min Mat Distress Signals 12 | . 3 . 9 . . . . Communications Jammed . | . . . . . . . . Distress Signals . | . . . . . . . . Times Spotted 169 | . 49 9 69 14 15 3 10 Peak Tracking Total 9 | . 6 2 6 3 9 3 6 Tactical Retreats 7 | . 1 1 3 1 1 . . Traps | -11 -10 -10 -9 -9 -9 -8 -8 ------- Run | Yrd Mat Min Mat Min Exi Min Mat Traps Triggered 6 | . 2 . 4 . . . . Indirectly . | . . . . . . . . Trap Hack Attempts . | . . . . . . . . Triggered . | . . . . . . . . Disarmed . | . . . . . . . . Reprogrammed . | . . . . . . . . Reused . | . . . . . . . . Traps Extracted . | . . . . . . . . Installed . | . . . . . . . . Triggered . | . . . . . . . . Machines | -11 -10 -10 -9 -9 -9 -8 -8 ---------- Run | Yrd Mat Min Mat Min Exi Min Mat Machines Disabled 12 | . . . 1 . 11 . . Max in Single Turn 2 | . . . 1 . 2 . . Machines Repaired . | . . . . . . . . Machines Dismantled . | . . . . . . . . Machines Sabotaged 3 | . 3 . . . . . . Overloaded Fab Kills . | . . . . . . . . Hacking | -11 -10 -10 -9 -9 -9 -8 -8 --------- Run | Yrd Mat Min Mat Min Exi Min Mat Machines Accessed 21 | . 9 . 9 . 1 . 2 Terminals 15 | . 7 . 6 . . . 2 Fabricators . | . . . . . . . . Repair Stations . | . . . . . . . . Recycling Units 4 | . 2 . 2 . . . . Scanalyzers 1 | . . . 1 . . . . Garrison Access . | . . . . . . . . Total Hacks 54 | . 27 . 22 . 1 . 4 Successful 22 | . 15 . 4 . 1 . 2 Failed 32 | . 12 . 18 . . . 2 Catastrophic 4 | . . . 3 . . . 1 Database Lockouts . | . . . . . . . . Manual 49 | . 25 . 18 . 1 . 5 Terminals 44 | . 24 . 16 . . . 4 Fabricators . | . . . . . . . . Repair Stations . | . . . . . . . . Recycling Units 7 | . 3 . 4 . . . . Scanalyzers 2 | . . . 2 . . . . Garrison Access . | . . . . . . . . Terminal Hacks 6 | . 2 . 2 . 1 . 1 Robot Analysis 3 | . 2 . 1 . . . . Branch Access Points 2 | . . . 1 . . . 1 Proto ID Catalog 1 | . . . . . 1 . . Fabricator Hacks . | . . . . . . . . Repair Station Hacks . | . . . . . . . . Recycling Unit Hacks . | . . . . . . . . Scanalyzer . | . . . . . . . . Garrison Access Hacks . | . . . . . . . . Unauthorized Hacks 16 | . 13 . 2 . . . 1 Terminals 12 | . 11 . . . . . 1 Assimilate 2 | . 2 . . . . . . Botnet 5 | . 4 . . . . . 1 Sabotage 5 | . 5 . . . . . . Fabricators . | . . . . . . . . Repair Stations . | . . . . . . . . Recycling Units 4 | . 2 . 2 . . . . Tunnel 4 | . 2 . 2 . . . . Scanalyzers . | . . . . . . . . Garrison Access . | . . . . . . . . Data Cores Recovered . | . . . . . . . . Used . | . . . . . . . . Hacking Detections 14 | . 5 . 7 . . . 2 Full Trace Events 8 | . 2 . 6 . . . . Feedback Events . | . . . . . . . . Feedback Blocked . | . . . . . . . . Robot Schematics Acquired . | . . . . . . . . Robots Built . | . . . . . . . . Authchips . | . . . . . . . . Time . | . . . . . . . . Total Robot Build Rating . | . . . . . . . . Part Schematics Acquired . | . . . . . . . . Parts Built . | . . . . . . . . Authchips . | . . . . . . . . Time . | . . . . . . . . Total Part Build Rating . | . . . . . . . . Part Studies Acquired . | . . . . . . . . Parts Repaired . | . . . . . . . . Time . | . . . . . . . . Parts Recycled . | . . . . . . . . Recycled Matter . | . . . . . . . . Retrieved Matter . | . . . . . . . . Retrieved Components . | . . . . . . . . Parts Scanalyzed . | . . . . . . . . Part Schematics Acquired . | . . . . . . . . Parts Damaged . | . . . . . . . . Bothacking | -11 -10 -10 -9 -9 -9 -8 -8 ------------ Run | Yrd Mat Min Mat Min Exi Min Mat Used RIF Installer . | . . . . . . . . Robots Hacked . | . . . . . . . . Non-combat . | . . . . . . . . Combat . | . . . . . . . . Robot Hacks Applied . | . . . . . . . . Relay Couplers Released . | . . . . . . . . Fabnet Peak Effective % . | . . . . . . . . Robots Rewired . | . . . . . . . . Allies Hacked . | . . . . . . . . Hacks Repelled . | . . . . . . . . Allies | -11 -10 -10 -9 -9 -9 -8 -8 -------- Run | Yrd Mat Min Mat Min Exi Min Mat Total Allies 6 | . 1 . . 5 . . . Largest Group 5 | . 1 1 . 5 5 . . Highest-Rated Group 92 | . 10 10 . 92 92 . . Highest-Rated Ally 31 | . 10 10 . 31 31 . . Total Orders 9 | . 4 . . . 5 . . STAY 6 | . 2 . . . 4 . . FOLLOW 3 | . 2 . . . 1 . . Ally Attacks 16 | . . . . . 16 . . Total Damage 116 | . . . . . 116 . . Kills 2 | . . . . . 2 . . Allies Corrupted . | . . . . . . . . Allies Melted . | . . . . . . . . Intel | -11 -10 -10 -9 -9 -9 -8 -8 ------- Run | Yrd Mat Min Mat Min Exi Min Mat Active Infowar (turns) 4844 | 25 1263 405 1315 410 967 287 172 Terrain 4229 | 25 1263 405 1315 410 811 . . Seismic 4836 | 17 1263 405 1315 410 967 287 172 Robot Analysis Total 3 | . 2 . 1 . . . . Derelict Logs Recovered 4 | . . 3 . 1 . . . Drone Launches . | . . . . . . . . Drone Recoveries . | . . . . . . . . Exploration | -11 -10 -10 -9 -9 -9 -8 -8 ------------- Run | Yrd Mat Min Mat Min Exi Min Mat Turns Passed 4908 | 89 1263 405 1315 410 967 287 172 Spaces Moved 5347 | 59 1350 599 998 564 1145 454 178 Core 5 | 5 . . . . . . . Treads . | . . . . . . . . Legs . | . . . . . . . . Wheels 63 | 54 9 . . . . . . Hover 5279 | . 1341 599 998 564 1145 454 178 Flight . | . . . . . . . . Fastest Speed 50 | 50 56 52 53 53 53 61 61 Average Speed 57 | 86 59 55 54 53 55 61 61 Slowest Speed 121 | 100 90 58 121 53 115 61 61 Overloaded Moves . | . . . . . . . . Propulsion Burnouts . | . . . . . . . . Robots Hopped . | . . . . . . . . Potential Cave-ins . | . . . . . . . . Cave-ins Triggered . | . . . . . . . . Exploration Rate (%) 72 | 3 98 99 78 96 91 93 22 Regions Visited 7 Branch Regions 4 Pre-discovered Areas 4 | . 2 . 2 . . . . Known Exits Taken 1 | . . . 1 . . . . Unknown Exits Taken 6 | 1 1 1 . 1 1 1 . Scrap Searched 4 | . . 1 . 2 . 1 . Spaces Dug . | . . . . . . . . Terrain Destroyed 13 | . . . 4 . 1 4 4 Melee . | . . . . . . . . Projectile 9 | . . . . . 1 4 4 AOE 4 | . . . 4 . . . . Terrain Rammed . | . . . . . . . . Walls Destroyed . | . . . . . . . . Machines Disabled . | . . . . . . . . Actions | -11 -10 -10 -9 -9 -9 -8 -8 --------- Run | Yrd Mat Min Mat Min Exi Min Mat Total 6573 | 76 1642 634 1526 619 1389 460 227 Wait 607 | 2 162 3 318 18 104 . . Move 5340 | 58 1349 598 997 563 1144 453 178 Hop . | . . . . . . . . Pick Up 22 | . 4 . 5 1 12 . . Fast Attach 25 | 7 1 1 7 . 7 1 1 Attach 1 | . 1 . . . . . . Detach . | . . . . . . . . Swap 28 | . 6 3 13 . 5 . 1 Drop 37 | . 3 1 11 . 22 . . Fire 364 | 9 86 20 110 27 81 6 25 Melee . | . . . . . . . . Ram . | . . . . . . . . Kick . | . . . . . . . . Crush . | . . . . . . . . Escape Stasis . | . . . . . . . . Rewire 8 | . . . 8 . . . . Trap . | . . . . . . . . Miscellaneous 141 | . 30 8 57 10 14 . 22 Route ------- -11/Scrapyard -10/Materials (discovered 4 exits: *Mat x3 / [*Min]) -10/Mines (discovered 3 exits: *Mat x2 / [*Sub]) -9/Materials (discovered 5 exits: *Mat x3 / *Min x2) -9/Mines (discovered 3 exits: *Mat x2 / *Exi) -9/Exiles -8/Mines (discovered 2 exits: *Mat x2) -8/Materials (discovered 1 exit: Fac) History --------- Turn | Location | Event 1 | -11/Scrapyard | Upgraded with Propulsion slot (x1) 1 | -11/Scrapyard | Upgraded with Utility slot (x1) 1 | -11/Scrapyard | Upgraded with Weapon slot (x1) 16 | -11/Scrapyard | Discovered new exit (range 15) 90 | -11/Scrapyard | Entered Materials 286 | -10/Materials | Discovered new exit (range 13) 312 | -10/Materials | Build established: Mutant 462 | -10/Materials | Discovered new exit (range 6) 623 | -10/Materials | Reached level 2 718 | -10/Materials | Discovered new exit (range 13) 753 | -10/Materials | Discovered new exit (range 10) 911 | -10/Materials | Reached level 3 975 | -10/Materials | Upgraded with Utility slot (x1) 1108 | -10/Materials | Upgraded with Utility slot (x1) 1108 | -10/Materials | Upgraded with Weapon slot (x1) 1353 | -10/Materials | Entered Mines 1353 | -10/Mines | Accompanied by 1 ally 1355 | -10/Mines | Reached level 4 1355 | -10/Mines | Learned 2 Materials zone layouts 1360 | -10/Mines | A weapon hastily lodged in a ceiling crevice suddenly fell to the ground 1394 | -10/Mines | Assembled infested the area 1399 | -10/Mines | Assisted by a Guerilla fighting off Assembled 1413 | -10/Mines | Learned Materials trap positions 1454 | -10/Mines | Learned Materials garrison access intel 1515 | -10/Mines | Discovered new exit (range 13) 1575 | -10/Mines | Upgraded with Propulsion slot (x1) 1640 | -10/Mines | Discovered new exit (range 9) 1657 | -10/Mines | Discovered new exit (range 4) 1758 | -10/Mines | Entered Materials 1759 | -9/Materials | Identified exit to Mines 1760 | -9/Materials | Loaded intel: 28 trap records 1760 | -9/Materials | Reached level 5 1821 | -9/Materials | Upgraded with Utility slot (x1) 1922 | -9/Materials | Reached level 6 1986 | -9/Materials | Upgraded with Power slot (x1) 2071 | -9/Materials | Reached level 7 2158 | -9/Materials | First assault squad dispatched 2185 | -9/Materials | Upgraded with Propulsion slot (x1) 2225 | -9/Materials | Build established: Scavenger-Tank 2462 | -9/Materials | Reached level 8 2616 | -9/Materials | Discovered new exit (range 7) 2807 | -9/Materials | Reached level 9 2858 | -9/Materials | Discovered new exit (range 16) 2946 | -9/Materials | Sterilization system engaged 2946 | -9/Materials | Non-combat units ordered to evacuate 3010 | -9/Materials | Discovered new exit (range 16) 3046 | -9/Materials | Combat units ordered to evacuate 3073 | -9/Materials | Entered Mines 3088 | -9/Mines | Learned 4 Materials zone layouts 3088 | -9/Mines | Discovered new exit (range 8) 3119 | -9/Mines | Destroyed 7 combat bots 3230 | -9/Mines | Discovered new exit (range 5) 3333 | -9/Mines | Found a damaged Exp. Sensor Array with a note attached 3336 | -9/Mines | Upgraded with Utility slot (x1) 3338 | -9/Mines | Found Prototype Device 3422 | -9/Mines | Assisted by bots powering up and referring to "LRC-V3" 3468 | -9/Mines | Deemed a non-threat by the Exiles lab entrance 3468 | -9/Mines | Discovered new exit (range 5) 3483 | -9/Mines | Entered Exiles 3483 | -9/Exiles | Accompanied by 5 allies 3485 | -9/Exiles | Reached level 10 3497 | -9/Exiles | Met 8R-AWN 3506 | -9/Exiles | Met EX-HEX 3513 | -9/Exiles | Led the pair of lost Derelicts to a safe place 3520 | -9/Exiles | Met EX-BIN 3525 | -9/Exiles | Met EX-DEC 3538 | -9/Exiles | Aligned with FarCom system 3539 | -9/Exiles | Given EX-Vault access code 3551 | -9/Exiles | Opened EX-Vault 3555 | -9/Exiles | Found Trap Reconfigurator 3567 | -9/Exiles | Warned to stay clear of 0b10 Research branches 3755 | -9/Exiles | Visited The Gauntlet 3931 | -9/Exiles | Attacked by the Exiles 4074 | -9/Exiles | Core integrity fell below 50% 4076 | -9/Exiles | Lost 3 allies 4109 | -9/Exiles | Destroyed 8R-AWN 4114 | -9/Exiles | Found Prototype Device 4114 | -9/Exiles | Identified AS-neutralizer No. 17b 4141 | -9/Exiles | Found Prototype Ballistic Gun 4141 | -9/Exiles | Identified 8R-AWN's Boregun 4236 | -9/Exiles | Destroyed EX-HEX 4254 | -9/Exiles | Destroyed EX-DEC 4279 | -9/Exiles | Destroyed EX-BIN 4285 | -9/Exiles | Found Prototype Device 4285 | -9/Exiles | Identified System Purifier 4288 | -9/Exiles | Found Prototype Processor 4288 | -9/Exiles | Identified Exp. Core Analyzer 4303 | -9/Exiles | Found Deploy-a-Sentry 4378 | -9/Exiles | Found PSU Rigger 4445 | -9/Exiles | Discovered new exit (range 10) 4450 | -9/Exiles | Stole three prototypes: Trap Reconfigurator, PSU Rigger, Deploy-a-Sentry 4450 | -9/Exiles | Entered Mines 4463 | -8/Mines | Build established: Scavenger-Mutant 4483 | -8/Mines | Discovered new exit (range 16) 4582 | -8/Mines | Discovered new exit (range 9) 4737 | -8/Mines | Entered Materials 4738 | -8/Materials | Identified exit to Factory 4739 | -8/Materials | Loaded intel: 1 garrison access location 4739 | -8/Materials | Reached level 11 4808 | -8/Materials | Core integrity fell below 50% 4824 | -8/Materials | Reached level 12 4833 | -8/Materials | Build established: Scavenger-Gunner 4909 | -8/Materials | Self-destructed Last Messages --------------- 04885_ HV Slug penetrates A-02 Transporter. 04885_ A-02 Transporter suffers critical hit (Destroy). 04885_ Destroyed Lgt. Treads. 04885_ HV Slug penetrates Wall. 04887_ HV Slug penetrates A-02 Transporter. 04887_ A-02 Transporter destroyed. 04887_ HV Slug penetrates Wall. 04889_ K-01 Serf collects debris. 04889_ Acquired Reflective Plating. 04892_ K-01 Serf collects debris. 04902_ Connecting with Terminal... 04902_ Current location identified: Materials 04908_ Connecting with Terminal... >>Trojan(Botnet) Trojan loaded successfully. Testing... Terminal linked with 0 systems. Awaiting botnet instructions. >>Access(Branch) No branch access points found. Map ----- +----------------------------------------------------+ | ??################+### ??????????????????????? | | ?? #??# ## #??????????????????????? | | ?? #??# """ ## #??????????????????????? | | ?? """ """ #??# "R ## #??????????????????????? | | ?? """ """ #??# """ ## /??????????????????????? | | ?? """ """ #??# ## #??????????????????????? | | ?? """ #??# + #??????????????????????? | | ?? #??######### #??????????????????????? | | ?? #??????????# #??????????????????????? | | ??##########??????????# #??????????????????????? | | ????????????????????### #??????????????????????? | | ????????????????????# #= #??????????????????????? | | ?????????????????????#"%! #??????????????????????? | | ?????????????????????##%! #??????????????????????? | | ?????????????????????##!! ##?????????????????????? | | ?????################# * #?????????????????????? | | ???? ! #?????????????????????? | | ???? !! T #?????????????????????? | | ???? !!%!= #?????????????????????? | | ????????##########/### #?????????????????????? | | ???########### ####+#####???????????????????? | | ???# ## # #???????????????????? | | ???# ## # """" #???????????????????? | | ???# ## # """" #???????????????????? | | ???# ## # """" #???????????????????? | | ???# ## # @ #???????????????????? | | ???# ## # #???????????????????? | | ???# [ ## # "T" #???????????????????? | | ???# ## # """ #???????????????????? | | ???# ] ## # #???????????????????? | | ???#####+##### ##########???????????????????? | | ###### ####+#####????????????????????????????? | | != % ####???????????????????????????? | | =! #???????????????????????????? | | %* #???????????????????????????? | | ##### ######### #???????????????????????????? | | +#???## ==########???#???????????????????????????? | | ????#!%=# !#???????????????????????????????? | | ????#=%|# #???????????????????????????????? | | ????+/=%+ """ #???????????????????????????????? | | ????#[!!#! """ #???????????????????????????????? | | ????#= %#? """ ????????????????????????????????? | | ????#=*=#?? ????????????????????????????????? | | ##????# =%#????###???????????????????????????????? | | ??????# %%#??????????????????????????????????????? | | ??????#= #??????????????????????????????????????? | | ??????# #??????????????????????????????????????? | | ??????# #??????????????????????????????????????? | | ####### ###????????????#???????????????????????? | | [ ## #T############ ?????????????????????? | +----------------------------------------------------+ Best States ------------- Heat Dissipation 73 Energy Generation 28 Energy Capacity 340 Matter Stores 300 Matter Capacity 300 Sight Range 16 Terrain Scan Range 16 Terrain Scan Density 10 Armor Coverage 525 Resistance: KI 20 Resistance: TH 10 Weapon Cycling 25 Evasion (%) 54 Core Analysis 8 Armor Integrity Analysis 40 Item Schematics ----------------- None Robot Schematics ------------------ None Fabricated ------------ Nothing Repaired ---------- Nothing Studied --------- None Alien Tech Used ----------------- None Achievements -------------- None Challenges ------------ None RPGLIKE | -11 -10 -10 -9 -9 -9 -8 -8 --------- Run | Yrd Mat Min Mat Min Exi Min Mat Levels Raised 11 | . 2 1 5 . 1 . 2 XP Earned 19550 | 3000 4474 850 7042 1084 147 850 2103 XP Spent 15360 | 2960 2700 800 5450 2450 1000 . . Upgrades 28 | 10 3 1 11 2 1 . . Power Slot 1 | . . . 1 . . . . Propulsion Slot 3 | 1 . 1 1 . . . . Utility Slot 5 | 1 2 . 1 1 . . . Weapon Slot 2 | 1 1 . . . . . . Heat Dissipation 8 | 3 . . 5 . . . . Mass Support 2 | 1 . . 1 . . . . Inventory Capacity 4 | 2 . . . 1 1 . . Ranged Accuracy 3 | 1 . . 2 . . . . Protomatter Created 1371 | . 467 28 599 121 . . 156 Integrity Restored 2663 | . 471 139 1105 182 300 . 466 Core 2032 | . 357 139 709 100 300 . 427 Parts 631 | . 114 . 396 82 . . 39 Protomatter Decayed 397 | . 179 43 126 49 . . . Game ------ Seed CloakingLinkedMask Manual? 0 Play Time 01:05:15 Cumulative 507.8 hours Start 2025.12.23 @ 06:43:55 End 2025.12.25 @ 09:27:04 Sessions 15 Manual Loads 0 Difficulty Rogue Special Mode Winter2019/RPGLIKE Game No. 190 Rogue 36 Adventurer 154 Explorer 0 Win Type - Total 20 Types 4/4/3/3/2/1/0/1/1/1 Lore% 94 Gallery% 86 Achievement% 61 Wizard Run 0 Options --------- Layout 0 ASCII 0 Keyboard 0 Movement Numpad Keybinds 0 Fullscreen 2 Font 18/SmallcapsGlow Map View 76x50 Zoom Use 3% Tactical HUD 1 Map Filters NONE Filters NONE Steam 1 RUN: 8738b051-263b-4230-a9c1-eac6181ab8b6